fUSD/lending_fUSD_20250820
["ID","MTS","AMOUNT","RATE_DAILY","PERIOD"]
[380335138,1755691883179,-2107.427977,0.00013699,2]
[380335139,1755691883201,-2107.427977,0.00013699,2]
[380335140,1755691883223,-2107.427977,0.00013699,2]
[380335141,1755691883246,-2107.427977,0.00013699,2]
[380335142,1755691883268,-2107.427977,0.00013699,2]
[380335143,1755691883289,-2107.427977,0.00013699,2]
[380335144,1755691883311,-2107.427977,0.00013699,2]
[380335145,1755691883334,-2107.427977,0.00013699,2]
[380335146,1755691883356,-2107.427977,0.00013699,2]
[380335147,1755691883379,-2107.427977,0.00013699,2]
[380335148,1755691883401,-2107.427977,0.00013699,2]
[380335149,1755691883424,-2107.427977,0.00013699,2]
[380335150,1755691883447,-2107.427981,0.00013699,2]
[380335151,1755691883469,-200.0,0.00013699,2]
[380335152,1755691883490,-194.64,0.000137,2]
[380335153,1755691883512,-194.64,0.000137,2]
[380335154,1755691883534,-194.64,0.000137,2]
[380335155,1755691883556,-194.64,0.000137,2]
[380335156,1755691883577,-194.64,0.000137,2]
[380335157,1755691896130,-932.53,0.00014652,2]
[380335158,1755691896152,-151.0,0.00014782,2]
[380335159,1755691899867,3000.0,9.04e-05,2]
[380335160,1755691902409,-151.0,0.00014894,2]
[380335161,1755691903326,150.0,0.0001227,2]
[380335162,1755691903534,3000.0,0.0001041,2]
[380335163,1755691903645,275.7207,0.00010886,2]
[380335164,1755691907157,3000.0,0.0001178,2]
[380335165,1755691910764,3000.0,0.0001315,2]
[380335166,1755691912644,2441.45,0.00011,2]
[380335167,1755691914462,3000.0,0.0001452,2]
[380335168,1755691916068,1000.0,0.00010899,2]
[380335169,1755691926984,500.0,0.00010993,2]
[380335170,1755691927736,151.0,0.00010993,2]
[380335171,1755691927794,500.0,0.00010993,2]
[380335172,1755691927842,500.0,0.00012463,2]
[380335173,1755691928470,151.0,0.00010993,2]
[380335174,1755691928521,500.0,0.00010993,2]
[380335175,1755691931232,212.04014818,0.00012314,2]
[380335176,1755691931288,564.365388,0.00010958,2]
[380335177,1755691931324,352.94938122,0.00010993,2]
[380335178,1755691931478,151.0,0.00010993,2]
[380335179,1755691931523,500.0,0.00012463,2]
[380335180,1755691931585,151.0,0.00010993,2]
[380335181,1755691931683,500.0,0.00012463,2]
[380335182,1755691931719,151.0,0.00010993,2]
[380335183,1755691932511,151.0,0.00010993,2]
[380335184,1755691933907,151.0,0.00010993,2]
[380335185,1755691934085,277.35679052,0.00010993,2]
[380335186,1755691934708,151.0,0.00010993,2]
[380335187,1755691934850,287.61899177,0.00012362,2]
[380335188,1755691935573,298.26089446,0.00013731,2]
[380335189,1755691936133,151.0,0.00010993,2]
[380335190,1755691936539,3000.0,9.04e-05,2]
[380335191,1755691936900,151.0,0.00010993,2]
[380335192,1755691937675,151.0,0.00010993,2]
[380335193,1755691937881,160.0,0.00012314,2]
[380335194,1755691938430,151.0,0.00010993,2]
[380335195,1755691939418,843.97594471,0.00012314,2]
[380335196,1755691939863,151.0,0.00010993,2]
[380335197,1755691940211,3000.0,0.0001041,2]
[380335198,1755691940656,151.0,0.00010993,2]
[380335199,1755691942993,151.0,0.00010993,2]
[380335200,1755691943142,151.0,0.00010993,2]
[380335201,1755691943224,151.0,0.00010993,2]
[380335202,1755691943792,151.0,0.00010993,2]
[380335203,1755691943854,3000.0,0.0001178,2]
[380335204,1755691944550,151.0,0.00010993,2]
[380335205,1755691945355,151.0,0.00010993,2]
[380335206,1755691946379,500.0,0.00010999,2]
[380335207,1755691946648,500.0,0.00011273,2]
[380335208,1755691946899,500.0,0.00011547,2]
[380335209,1755691947662,500.0,0.00011821,2]
[380335210,1755691947706,503.74,0.00012095,2]
[380335211,1755691947742,3000.0,0.0001315,2]
[380335212,1755691948341,151.0,0.00010993,2]
[380335213,1755691951115,3000.0,0.0001452,2]
[380335214,1755691954500,151.0,0.00010993,2]
[380335215,1755691954577,4012.4797,0.00010886,2]
[380335216,1755691956561,500.0,0.00010993,2]
[380335217,1755691957314,500.0,0.00010993,2]
[380335218,1755691960704,500.0,0.00010993,2]
[380335219,1755691961437,500.0,0.00011048,2]
[380335220,1755691966909,2300.0,9.04e-05,2]
[380335221,1755691970520,2300.0,0.0001041,2]
[380335222,1755691972585,-279.11008762,0.00015091,2]
[380335223,1755691972608,-309.29654756,0.000151,2]
[380335224,1755691972632,-300.0,0.00015191,2]
[380335225,1755691972656,-151.0,0.00015197,2]
[380335226,1755691974119,2300.0,0.0001178,2]
[380335227,1755691974954,151.0,0.00010993,2]
[380335228,1755691975688,151.0,0.00010993,2]
[380335229,1755691976479,151.0,0.00010993,2]
[380335230,1755691978434,2300.0,0.0001315,2]
[380335231,1755691978486,513.7544,9.85e-05,2]
[380335232,1755691985677,151.0,0.00010993,2]
[380335233,1755691986428,151.0,0.00010993,2]
[380335234,1755691987204,151.0,0.00010993,2]
[380335235,1755691988054,151.0,0.00010993,2]
[380335236,1755691990886,151.0,0.00010993,2]
[380335237,1755691991003,176.0,0.00013123,3]
[380335238,1755691998426,900.0,0.00013699,2]
[380335239,1755691998682,900.0,0.00013699,2]
[380335240,1755691998979,900.0,0.00013699,2]
[380335241,1755691999247,900.0,0.00013699,2]
[380335242,1755691999940,900.0,0.00013699,2]
[380335243,1755692000247,900.0,0.00013699,2]
[380335244,1755692000514,900.0,0.00013699,2]
[380335245,1755692000797,900.0,0.00013699,2]
[380335246,1755692011707,-2828.39132668,0.00015605,2]
[380335247,1755692011735,-157.05963202,0.00015838,7]
[380335248,1755692011759,-300.0,0.00015889,2]
[380335249,1755692011790,-2481.05,0.0001589,2]
[380335250,1755692011812,-2300.0,0.0001589,2]
[380335251,1755692011835,-3000.0,0.0001589,2]
[380335252,1755692011859,-3000.0,0.0001589,2]
[380335253,1755692011883,-458.46930693,0.0001589,2]
[380335254,1755692011906,-151.0,0.00015909,2]
[380335255,1755692023706,212.04014818,0.00015605,2]
[380335258,1755692042514,188.956254,0.00013661,2]
[380335259,1755692047624,275.7207,0.00010886,2]
[380335261,1755692078405,200.0,0.00010076,2]
[380335262,1755692081256,157.05963202,0.00015838,7]
[380335263,1755692093305,10000.0,0.00012,2]
[380335264,1755692103116,2197.31,0.00011,2]
[380335266,1755692129289,162.4026,0.000109,2]
[380335267,1755692142218,4250.617,0.00013186,2]
[380335269,1755692158149,-843.97594471,0.00016424,2]
[380335270,1755692158176,-300.0,0.00016437,2]
[380335271,1755692158204,-1200.0,0.00016437,2]
[380335272,1755692158232,-300.0,0.00016437,2]
[380335273,1755692158258,-300.0,0.00016437,2]
[380335274,1755692158285,-458.46930693,0.00016437,2]
[380335275,1755692158310,-700.2,0.00016438,2]
[380335276,1755692158341,-600.0,0.00016438,2]
[380335277,1755692158369,-600.0,0.00016438,2]
[380335278,1755692158398,-600.0,0.00016438,2]
[380335279,1755692158427,-600.0,0.00016438,2]
[380335280,1755692158456,-600.0,0.00016438,2]
[380335281,1755692158486,-156.40174198,0.00016438,2]
[380335282,1755692158663,-443.59825802,0.00016438,2]
[380335283,1755692172869,-600.0,0.00016438,2]
[380335284,1755692172894,-600.0,0.00016438,2]
[380335285,1755692172919,-600.0,0.00016438,2]
[380335286,1755692172941,-600.0,0.00016438,2]
[380335287,1755692172969,-600.0,0.00016438,2]
[380335288,1755692172994,-300.0,0.00016454,2]
[380335289,1755692173017,-320.74051982,0.00016469,2]
[380335290,1755692173041,-300.0,0.00016592,2]
[380335291,1755692173063,-300.0,0.00016636,2]
[380335292,1755692173088,-300.0,0.00016704,2]
[380335293,1755692173111,-250.0,0.00016704,2]
[380335294,1755692173135,-150.0,0.00016704,2]
[380335295,1755692173159,-700.2,0.00016712,2]
[380335296,1755692173181,-181.31,0.00016712,2]
[380335297,1755692173204,-5687.33484402,0.0001685,2]
[380335300,1755692188941,3000.0,9.04e-05,2]
[380335305,1755692372324,3000.0,9.04e-05,2]
[380335307,1755692456770,3000.0,9.04e-05,2]
[380335309,1755692601836,-600.0,0.00010409,2]
[380335310,1755692609140,-600.0,0.00010409,2]
[380335313,1755692750396,1800.0,9.04e-05,2]
[380335314,1755692787387,3000.0,9.04e-05,2]
[380335316,1755692859023,3000.0,9.04e-05,2]
[380335318,1755692924933,-1200.0,0.00010409,2]
[380335319,1755692924958,-1200.0,0.00010409,2]
[380335320,1755692924982,-1800.0,0.0001041,2]
[380335321,1755692925007,-3000.0,0.0001041,2]
[380335322,1755692925034,-2800.0,0.0001041,2]
[380335373,1755693032247,-200.0,0.0001041,2]
[380335376,1755693032257,-159.27380135,0.000109,2]
[380335378,1755693032266,-500.0,0.00010973,2]
[380335379,1755693032276,-500.0,0.00010973,2]
[380335381,1755693032285,-233.35381454,0.00010973,2]
[380335383,1755693032295,-500.0,0.00010973,2]
[380335386,1755693032304,-1200.0,0.00010998,2]
[380335388,1755693032314,-150.0,0.00010998,2]
[380335390,1755693032323,-395.0557716,0.00010999,2]
[380335392,1755693032333,-500.0,0.00010999,2]
[380335394,1755693032342,-307.49379048,0.00010999,2]
[380335396,1755693032351,-474.16820376,0.00010999,2]
[380335397,1755693032360,-500.0,0.00010999,2]
[380335399,1755693032370,-368.63896587,0.00010999,2]
[380335486,1755693033724,-131.36103413,0.00010999,2]
[380335487,1755693033734,-500.0,0.00010999,2]
[380335488,1755693033743,-384.41047997,0.00010999,2]
[380335489,1755693033754,-115.58952003,0.00010999,2]
[380335490,1755693033763,-500.0,0.00010999,2]
[380335491,1755693033773,-500.0,0.00010999,2]
[380335492,1755693033783,-500.0,0.00010999,2]
[380335493,1755693033792,-500.0,0.00010999,2]
[380335494,1755693033802,-500.0,0.00010999,2]
[380335495,1755693033811,-500.0,0.00010999,2]
[380335496,1755693033820,-242.3557832,0.00010999,2]
[380335497,1755693033830,-500.0,0.00010999,2]
[380335498,1755693033839,-108.18943356,0.00010999,2]
[380335499,1755693033859,-391.81056644,0.00010999,2]
[380335500,1755693033869,-500.0,0.00010999,2]
[380335501,1755693033878,-38.60337142,0.00010999,2]
[380335502,1755693033890,-259.48941325,0.00010999,2]
[380335503,1755693033901,-201.90721533,0.00010999,2]
[380335504,1755693033911,-50.60337142,0.00010999,2]
[380335505,1755693033935,-424.03203778,0.00010999,2]
[380335506,1755693033946,-25.3645908,0.00010999,2]
[380335507,1755693033956,-291.15903518,0.00010999,2]
[380335508,1755693033968,-208.84096482,0.00010999,2]
[380335509,1755693033978,-121.71484533,0.00010999,2]
[380335510,1755693033991,-378.28515467,0.00010999,2]
[380335511,1755693034001,-500.0,0.00010999,2]
[380335512,1755693034011,-500.0,0.00010999,2]
[380335513,1755693034022,-500.0,0.00010999,2]
[380335514,1755693034032,-500.0,0.00010999,2]
[380335515,1755693034042,-500.0,0.00010999,2]
[380335516,1755693034052,-500.0,0.00010999,2]
[380335517,1755693034062,-500.0,0.00010999,2]
[380335518,1755693034071,-500.0,0.00010999,2]
[380335519,1755693034081,-500.0,0.00010999,2]
[380335520,1755693034090,-500.0,0.00010999,2]
[380335521,1755693034099,-500.0,0.00010999,2]
[380335522,1755693034108,-500.0,0.00010999,2]
[380335523,1755693034118,-500.0,0.00010999,2]
[380335524,1755693034130,-500.0,0.00010999,2]
[380335525,1755693034140,-500.0,0.00010999,2]
[380335526,1755693034149,-500.0,0.00010999,2]
[380335527,1755693034159,-500.0,0.00010999,2]
[380335528,1755693034168,-500.0,0.00010999,2]
[380335529,1755693034178,-500.0,0.00010999,2]
[380335530,1755693034187,-500.0,0.00010999,2]
[380335531,1755693034197,-500.0,0.00010999,2]
[380335532,1755693034207,-500.0,0.00010999,2]
[380335533,1755693034217,-500.0,0.00010999,2]
[380335534,1755693034226,-500.0,0.00010999,2]
[380335535,1755693034236,-500.0,0.00010999,2]
[380335536,1755693034245,-500.0,0.00010999,2]
[380335537,1755693034256,-423.19650465,0.00010999,2]
[380335538,1755693034268,-76.80349535,0.00010999,2]
[380335539,1755693034278,-323.91341796,0.00010999,2]
[380335540,1755693034299,-176.08658204,0.00010999,2]
[380335541,1755693034308,-400.0,0.00010999,2]
[380335542,1755693034317,-381.01698828,0.00010999,2]
[380335545,1755693037416,-118.98301172,0.00010999,2]
[380335546,1755693037426,-500.0,0.00010999,2]
[380335547,1755693037436,-276.60320874,0.00011,2]
[380335548,1755693037447,-523.59648985,0.00011,2]
[380335549,1755693037529,-447.31053682,0.00011,2]
[380335550,1755693037541,-1048.23113488,0.00011,2]
[380335551,1755693037670,-692.69169754,0.00011,2]
[380335552,1755693037682,-1208.2,0.00011,2]
[380335722,1755693039406,-1552.54532744,0.00011,2]
[380335847,1755693043541,-151.0,0.0001041,2]
[380335848,1755693043551,-684.04991627,0.00011,2]
[380335849,1755693043576,-316.47033406,0.00011,2]
[380335851,1755693045457,-726.9762525,0.000109,2]
[380335852,1755693045515,-858.6829475,0.000109,2]
[380335853,1755693045524,-462221.5275635,0.00011,2]
[380335854,1755693045683,-434.45517253,0.00011,2]
[380335855,1755693045700,-378.273,0.00011,2]
[380335857,1755693045766,-893.0,0.00011,2]
[380335862,1755693130477,-600.0,0.000109,2]
[380335863,1755693138368,-200.0,0.000109,2]
[380335864,1755693138413,-200.0,0.000109,2]
[380335865,1755693142394,244.0,0.00024657,120]
[380335866,1755693145572,-230.8191054,0.000109,2]
[380335867,1755693145612,-138.3617892,0.00010993,2]
[380335868,1755693152664,-17.40674066,0.00010993,2]
[380335869,1755693152687,-121.58826066,0.00010993,2]
[380335872,1755693376118,150.0,0.00024658,120]
[380335875,1755693546659,170.0,0.00010566,7]
[380335877,1755693620856,193.52653781,0.00024658,120]
[380335878,1755693632703,763.52212121,0.00024658,120]
[380335879,1755693676986,-443.59825802,0.00010502,2]
[380335880,1755693695238,-6.10174198,0.00010502,2]
[380335881,1755693695275,-144.19825802,0.00010546,2]
[380335882,1755693702206,-105.80174198,0.00010546,2]
[380335883,1755693702236,-102.42651604,0.0001063,2]
[380335884,1755693702273,-283.74348396,0.0001063,2]
[380335888,1755694224736,-100.0,0.00010307,2]
[380335889,1755694224748,-100.0,0.00010307,2]
[380335890,1755694224758,-100.0,0.00010348,2]
[380335895,1755694231583,-900.0,0.00010348,2]
[380335896,1755694231596,-1200.0,0.00010423,2]
[380335897,1755694231607,-146.85565521,0.00010423,2]
[380335898,1755694231640,-290.6487,0.00010423,2]
[380335899,1755694231651,-435.96,0.00010423,2]
[380335920,1755694232146,-326.53564479,0.00010423,2]
[380335923,1755694232166,-300.0,0.00010423,2]
[380335925,1755694232177,-10194.84326068,0.00010424,2]
[380335930,1755694232219,-962.14850595,0.00010424,2]
[380335932,1755694232231,-1009.319999,0.00010424,2]
[380335934,1755694232244,-8949.21487146,0.00010424,2]
[380335937,1755694232255,-2107.78865369,0.00010424,2]
[380335957,1755694235141,-1200.0,0.00010424,2]
[380335959,1755694237705,-8956.83470922,0.00010424,2]
[380335960,1755694237715,-649.98,0.00010729,2]
[380335961,1755694237724,-1498.845,0.00010899,2]
[380335962,1755694237734,-275.7207,0.00010899,2]
[380335963,1755694237743,-159.27380131,0.00010899,2]
[380335964,1755694237753,-313.42717,0.000109,2]
[380335965,1755694237762,-736.76172092,0.000109,2]
[380335966,1755694237772,-172.54120544,0.000109,2]
[380335967,1755694237783,-179.3,0.00010935,2]
[380335968,1755694237792,-1108.1046,0.00010959,2]
[380335969,1755694237801,-499.99,0.00010959,2]
[380335970,1755694237811,-150.99,0.00010959,2]
[380335971,1755694237820,-4269.66449267,0.00010959,2]
[380335972,1755694237832,-5569.31550733,0.00010959,2]
[380335973,1755694237841,-299.99,0.00010959,2]
[380335974,1755694237850,-500.0,0.00010972,2]
[380335975,1755694237860,-500.0,0.00010972,2]
[380335976,1755694237870,-500.0,0.00010972,2]
[380335977,1755694237879,-414.23557832,0.00010972,2]
[380335978,1755694237889,-500.0,0.00010972,2]
[380335979,1755694237898,-1686.51,0.00010972,2]
[380335980,1755694237907,-6174.16801039,0.00010972,2]
[380335981,1755694237921,-500.0,0.00010973,2]
[380335982,1755694237931,-999.99,0.00010973,2]
[380335983,1755694237941,-22664.21853021,0.00010973,2]
[380335984,1755694237952,-10877.45617318,0.00010973,2]
[380335985,1755694237981,-4898.17529661,0.00010973,2]
[380335986,1755694237991,-9999.99,0.00010973,2]
[380335987,1755694238001,-434.13,0.00010973,2]
[380335988,1755694238010,-586.08403236,0.00010973,2]
[380335989,1755694238020,-500.0,0.00010973,2]
[380335990,1755694238029,-277.35679052,0.00010987,2]
[380335991,1755694238040,-2525.72121121,0.0001099,2]
[380335992,1755694238049,-2308.78810105,0.00010991,2]
[380335993,1755694238059,-150.0,0.00010992,2]
[380335994,1755694238069,-2091.85499088,0.00010992,2]
[380335995,1755694238080,-1874.92188072,0.00010993,2]
[380335996,1755694238090,-322.6107,0.00010993,2]
[380335997,1755694238099,-160.32236936,0.00010993,2]
[380335998,1755694238110,-721.12765535,0.00010993,2]
[380335999,1755694238120,-159.47177447,0.00010993,2]
[380336000,1755694238130,-500.0,0.00010993,2]
[380336001,1755694238139,-500.0,0.00010993,2]
[380336002,1755694238149,-500.0,0.00010993,2]
[380336004,1755694238158,-500.0,0.00010993,2]
[380336006,1755694238168,-500.0,0.00010993,2]
[380336008,1755694238177,-500.0,0.00010993,2]
[380336009,1755694238187,-151.0,0.00010993,2]
[380336010,1755694238198,-500.0,0.00010993,2]
[380336011,1755694238209,-151.0,0.00010993,2]
[380336012,1755694238219,-500.0,0.00010993,2]
[380336013,1755694238228,-151.0,0.00010993,2]
[380336014,1755694238239,-500.0,0.00010993,2]
[380336015,1755694238250,-151.0,0.00010993,2]
[380336016,1755694238259,-500.0,0.00010993,2]
[380336017,1755694238268,-151.0,0.00010993,2]
[380336018,1755694238278,-500.0,0.00010993,2]
[380336019,1755694238287,-500.0,0.00010993,2]
[380336020,1755694238297,-151.0,0.00010993,2]
[380336021,1755694238308,-151.0,0.00010993,2]
[380336022,1755694238318,-151.0,0.00010993,2]
[380336023,1755694238328,-1657.98877055,0.00010994,2]
[380336024,1755694238337,-1441.05566039,0.00010995,2]
[380336025,1755694238346,-1224.12255022,0.00010996,2]
[380336026,1755694238355,-1007.18944005,0.00010997,2]
[380336027,1755694238365,-790.25632989,0.00010998,2]
[380336028,1755694238374,-666.0,0.00010998,2]
[380336029,1755694238384,-666.0,0.00010999,2]
[380336030,1755694238393,-1051.2292422,0.00010999,2]
[380336031,1755694238403,-500.0,0.00010999,2]
[380336032,1755694238412,-150.0,0.00010999,2]
[380336033,1755694238424,-666.0,0.00010999,2]
[380336034,1755694238434,-666.0,0.00010999,2]
[380336035,1755694238444,-622.75225908,0.00010999,2]
[380336036,1755694238455,-4684.996435,0.00011,2]
[380336037,1755694238465,-39443.30415434,0.00011,2]
[380336038,1755694238475,-2248.85,0.00011,2]
[380336039,1755694238486,-861018.42529884,0.00011,2]
[380336040,1755694238495,-995960.40847316,0.00011,2]
[380336041,1755694238507,-151.0,0.00011,2]
[380336042,1755694238517,-205.765105,0.00011,2]
[380336043,1755694238528,-282.995256,0.00011,2]
[380336044,1755694238537,-282.995256,0.00011,2]
[380336045,1755694238546,-282.995256,0.00011,2]
[380336046,1755694238555,-282.995256,0.00011,2]
[380336047,1755694238565,-218.794615,0.00011,2]
[380336048,1755694238574,-218.794615,0.00011,2]
[380336049,1755694238584,-151.0,0.00011,2]
[380336050,1755694238594,-218.794615,0.00011,2]
[380336051,1755694238606,-151.0,0.00011,2]
[380336052,1755694238615,-218.794615,0.00011,2]
[380336053,1755694238624,-151.0,0.00011,2]
[380336054,1755694238637,-151.0,0.00011,2]
[380336055,1755694238646,-151.0,0.00011,2]
[380336056,1755694238655,-243.253298,0.00011,2]
[380336057,1755694238665,-386.333156,0.00011,2]
[380336058,1755694238674,-386.333156,0.00011,2]
[380336059,1755694238684,-386.333156,0.00011,2]
[380336060,1755694238693,-386.333156,0.00011,2]
[380336061,1755694238703,-151.0,0.00011,2]
[380336062,1755694238712,-151.0,0.00011,2]
[380336063,1755694238722,-550.03864,0.00011,2]
[380336064,1755694238730,-151.0,0.00011,2]
[380336065,1755694238740,-151.0,0.00011,2]
[380336066,1755694238749,-550.03864,0.00011,2]
[380336067,1755694238759,-521.543757,0.00011,2]
[380336068,1755694238768,-157.492832,0.00011,2]
[380336069,1755694238779,-550.03864,0.00011,2]
[380336070,1755694238789,-550.03864,0.00011,2]
[380336071,1755694238798,-159.860561,0.00011,2]
[380336072,1755694238808,-159.860561,0.00011,2]
[380336073,1755694238818,-159.860561,0.00011,2]
[380336074,1755694238828,-159.860561,0.00011,2]
[380336075,1755694238838,-281.268074,0.00011,2]
[380336076,1755694238847,-151.0,0.00011,2]
[380336077,1755694238856,-151.0,0.00011,2]
[380336078,1755694238868,-281.268074,0.00011,2]
[380336079,1755694238878,-289.60468,0.00011,2]
[380336080,1755694238888,-151.0,0.00011,2]
[380336081,1755694238898,-151.0,0.00011,2]
[380336082,1755694238907,-281.268074,0.00011,2]
[380336083,1755694238916,-151.0,0.00011,2]
[380336084,1755694238926,-151.0,0.00011,2]
[380336085,1755694238936,-281.268074,0.00011,2]
[380336086,1755694238946,-258.030876,0.00011,2]
[380336087,1755694238955,-151.0,0.00011,2]
[380336088,1755694238965,-151.0,0.00011,2]
[380336089,1755694238975,-151.0,0.00011,2]
[380336090,1755694238985,-290.034428,0.00011,2]
[380336091,1755694238995,-151.0,0.00011,2]
[380336092,1755694239004,-151.0,0.00011,2]
[380336093,1755694239014,-700.201196,0.00011,2]
[380336094,1755694239024,-151.0,0.00011,2]
[380336095,1755694239034,-700.201196,0.00011,2]
[380336096,1755694239043,-700.201196,0.00011,2]
[380336097,1755694239053,-700.201196,0.00011,2]
[380336098,1755694239063,-151.0,0.00011,2]
[380336099,1755694239073,-151.0,0.00011,2]
[380336100,1755694239083,-151.0,0.00011,2]
[380336101,1755694239092,-151.0,0.00011,2]
[380336102,1755694239102,-151.0,0.00011,2]
[380336103,1755694239113,-151.0,0.00011,2]
[380336104,1755694239123,-151.0,0.00011,2]
[380336105,1755694239132,-151.0,0.00011,2]
[380336106,1755694239142,-151.0,0.00011,2]
[380336107,1755694239151,-151.0,0.00011,2]
[380336108,1755694239161,-151.0,0.00011,2]
[380336109,1755694239171,-151.0,0.00011,2]
[380336110,1755694239181,-151.0,0.00011,2]
[380336111,1755694239190,-258.828104,0.00011,2]
[380336112,1755694239200,-151.0,0.00011,2]
[380336113,1755694239209,-151.0,0.00011,2]
[380336114,1755694239219,-289.130324,0.00011,2]
[380336115,1755694239229,-1798.19964,0.00011,2]
[380336116,1755694239239,-155883.04,0.00011,2]
[380336117,1755694239249,-151.0,0.00011,2]
[380336118,1755694239258,-151.0,0.00011,2]
[380336119,1755694239267,-151.0,0.00011,2]
[380336120,1755694239278,-151.0,0.00011,2]
[380336121,1755694239288,-216.559262,0.00011,2]
[380336122,1755694239298,-151.0,0.00011,2]
[380336123,1755694239307,-151.0,0.00011,2]
[380336124,1755694239317,-151.0,0.00011,2]
[380336125,1755694239327,-151.0,0.00011,2]
[380336126,1755694239336,-192.985103,0.00011,2]
[380336127,1755694239346,-151.0,0.00011,2]
[380336128,1755694239355,-151.0,0.00011,2]
[380336129,1755694239365,-151.0,0.00011,2]
[380336130,1755694239375,-228.642886,0.00011,2]
[380336131,1755694239385,-151.0,0.00011,2]
[380336132,1755694239394,-152.114039,0.00011,2]
[380336133,1755694239404,-228.642886,0.00011,2]
[380336134,1755694239413,-151.0,0.00011,2]
[380336135,1755694239423,-228.642886,0.00011,2]
[380336136,1755694239433,-151.0,0.00011,2]
[380336138,1755694239442,-151.0,0.00011,2]
[380336139,1755694239457,-151.0,0.00011,2]
[380336140,1755694239467,-151.0,0.00011,2]
[380336141,1755694239476,-151.0,0.00011,2]
[380336142,1755694239486,-151.0,0.00011,2]
[380336143,1755694239496,-151.0,0.00011,2]
[380336144,1755694239506,-151.0,0.00011,2]
[380336145,1755694239516,-151.0,0.00011,2]
[380336146,1755694239526,-151.0,0.00011,2]
[380336147,1755694239542,-151.0,0.00011,2]
[380336148,1755694239553,-151.0,0.00011,2]
[380336149,1755694239563,-151.0,0.00011,2]
[380336150,1755694239573,-299.778001,0.00011,2]
[380336151,1755694239586,-299.778001,0.00011,2]
[380336152,1755694239606,-159.758689,0.00011,2]
[380336153,1755694239618,-151.0,0.00011,2]
[380336154,1755694239627,-299.778001,0.00011,2]
[380336155,1755694239637,-151.0,0.00011,2]
[380336156,1755694239647,-228.285808,0.00011,2]
[380336157,1755694239657,-299.778001,0.00011,2]
[380336158,1755694239667,-151.0,0.00011,2]
[380336159,1755694239678,-151.0,0.00011,2]
[380336160,1755694239687,-228.642886,0.00011,2]
[380336161,1755694239698,-151.0,0.00011,2]
[380336162,1755694239708,-151.0,0.00011,2]
[380336163,1755694239717,-151.0,0.00011,2]
[380336164,1755694239727,-151.0,0.00011,2]
[380336165,1755694239736,-151.0,0.00011,2]
[380336166,1755694239746,-462.198119,0.00011,2]
[380336167,1755694239755,-300.031023,0.00011,2]
[380336168,1755694239765,-462.198119,0.00011,2]
[380336169,1755694239774,-462.198119,0.00011,2]
[380336170,1755694239784,-151.0,0.00011,2]
[380336171,1755694239793,-151.0,0.00011,2]